fUST/lending_fUST_20260118
["ID","MTS","AMOUNT","RATE_DAILY","PERIOD"]
[402567231,1768709439390,-500.0,0.000132,2]
[402567232,1768709439399,-500.0,0.000132,2]
[402567233,1768709439409,-500.0,0.000132,2]
[402567234,1768709439418,-500.0,0.000132,2]
[402567235,1768709439428,-500.0,0.000132,2]
[402567236,1768709439437,-500.0,0.000132,2]
[402567237,1768709439447,-500.0,0.000132,2]
[402567238,1768709439456,-500.0,0.000132,2]
[402567239,1768709439465,-500.0,0.000132,2]
[402567240,1768709439475,-500.0,0.000132,2]
[402567241,1768709439484,-500.0,0.000132,2]
[402567242,1768709439494,-500.0,0.000132,2]
[402567243,1768709439503,-500.0,0.000132,2]
[402567244,1768709439514,-500.0,0.000132,2]
[402567245,1768709439523,-500.0,0.000132,2]
[402567246,1768709439534,-500.0,0.000132,2]
[402567247,1768709439543,-500.0,0.000132,2]
[402567248,1768709439552,-500.0,0.000132,2]
[402567249,1768709439561,-650.0,0.000132,2]
[402567250,1768709439570,-500.0,0.000132,2]
[402567251,1768709439580,-500.0,0.000132,2]
[402567252,1768709439589,-500.0,0.000132,2]
[402567253,1768709439597,-500.0,0.000132,2]
[402567254,1768709439607,-500.0,0.000132,2]
[402567255,1768709439616,-500.0,0.000132,2]
[402567256,1768709439626,-500.0,0.000132,2]
[402567257,1768709439635,-500.0,0.000132,2]
[402567258,1768709439644,-500.0,0.000132,2]
[402567259,1768709439654,-500.0,0.000132,2]
[402567260,1768709439663,-500.0,0.000132,2]
[402567261,1768709439673,-500.0,0.000132,2]
[402567262,1768709439682,-500.0,0.000132,2]
[402567263,1768709439691,-500.0,0.000132,2]
[402567264,1768709439700,-500.0,0.000132,2]
[402567265,1768709439709,-500.0,0.000132,2]
[402567266,1768709439718,-500.0,0.000132,2]
[402567267,1768709439728,-500.0,0.000132,2]
[402567268,1768709439737,-500.0,0.000132,2]
[402567269,1768709439747,-500.0,0.000132,2]
[402567270,1768709439756,-600.0,0.000132,2]
[402567271,1768709439766,-301676.45672748,0.00013201,2]
[402567272,1768709439778,-790.13,0.00013201,2]
[402567273,1768709439790,-697533.41327252,0.00013201,2]
[402567274,1768709439807,-175.58,0.00013273,2]
[402567275,1768709439817,-300.0,0.00013297,2]
[402567276,1768709439837,-23234.44468093,0.00013298,2]
[402567277,1768709439853,-2150.738,0.00013679,2]
[402567278,1768709439862,-162.380719,0.00013679,2]
[402567279,1768709439872,-168.3888056,0.00013679,2]
[402567280,1768709439882,-174.61919141,0.00013679,2]
[402567281,1768709439891,-181.08010149,0.00013679,2]
[402567282,1768709439901,-187.78006525,0.00013679,2]
[402567283,1768709439911,-303.13325425,0.00013679,2]
[402567284,1768709439920,-445.202766,0.00013679,2]
[402567285,1768709439929,-500.0,0.00013698,2]
[402567286,1768709439938,-500.0,0.00013698,2]
[402567287,1768709439948,-500.0,0.00013698,2]
[402567288,1768709439958,-500.0,0.00013698,2]
[402567289,1768709439968,-500.0,0.00013698,2]
[402567290,1768709439977,-500.0,0.00013698,2]
[402567291,1768709439986,-500.0,0.00013698,2]
[402567292,1768709439995,-500.0,0.00013698,2]
[402567293,1768709440004,-500.0,0.00013699,2]
[402567294,1768709440013,-425.20689877,0.00013699,2]
[402567295,1768709440023,-204.85,0.00014102,2]
[402567296,1768709440033,-2230.315306,0.00014227,2]
[402567298,1768709440042,-461.67526834,0.00014227,2]
[402567299,1768709440052,-300.0,0.00014578,2]
[402567300,1768709440062,-2312.83697232,0.00014775,2]
[402567301,1768709440071,-478.75725327,0.00014775,2]
[402567302,1768709440080,-1041.66666667,0.00014891,2]
[402567303,1768709440091,-234.11,0.00014932,2]
[402567304,1768709440102,-242.29022314,0.00015004,2]
[402567305,1768709440112,-237.283217,0.00015068,2]
[402567306,1768709440121,-151.0,0.000151,2]
[402567307,1768709440131,-2398.4119403,0.00015323,2]
[402567308,1768709440141,-496.47127164,0.00015323,2]
[402567309,1768709440150,-151.0,0.000154,2]
[402567310,1768709440160,-263.313748,0.0001568,2]
[402567311,1768709440169,-151.0,0.000157,2]
[402567312,1768709440179,-161.0,0.000157,2]
[402567313,1768709440189,-161.78498967,0.000157,2]
[402567314,1768709440199,-263.38,0.00015762,2]
[402567315,1768709440212,-500.0,0.00015766,2]
[402567316,1768709440221,-168.0,0.00015855,2]
[402567317,1768709440231,-2487.15318209,0.00015871,2]
[402567318,1768709440241,-514.84070869,0.00015871,2]
[402567319,1768709440251,-168.0,0.00015878,2]
[402567320,1768709440260,-168.0,0.00015916,2]
[402567321,1768709440270,-151.0,0.00016,2]
[402567322,1768709440279,-161.0,0.000161,2]
[402567323,1768709440288,-161.0,0.000161,2]
[402567324,1768709440298,-715.0,0.00016263,2]
[402567325,1768709440307,-199.584,0.00016263,2]
[402567326,1768709440317,-434.0,0.00016263,2]
[402567327,1768709440327,-417.0,0.00016263,2]
[402567328,1768709440336,-425.3,0.00016273,3]
[402567329,1768709440345,-3000.0,0.00016283,2]
[402567330,1768709440354,-212.65,0.00016329,3]
[402567331,1768709440363,-168.0,0.00016339,2]
[402567332,1768709440373,-637.98,0.0001639,3]
[402567333,1768709440382,-151.0,0.000164,2]
[402567334,1768709440390,-2579.17784983,0.00016419,2]
[402567335,1768709440397,-533.88981491,0.00016419,2]
[402567336,1768709440406,-194.0,0.00016438,2]
[402567337,1768709440415,-500.0,0.00016438,2]
[402567338,1768709440425,-500.0,0.00016438,2]
[402567339,1768709440434,-466.73475727,0.00016438,2]
[402567340,1768709440443,-150.07125105,0.00016438,2]
[402567341,1768709440453,-168.0,0.00016475,2]
[402567342,1768709440463,-168.0,0.00016488,2]
[402567343,1768709440473,-168.0,0.0001654,2]
[402567344,1768709440484,-168.0,0.00016547,2]
[402567345,1768709440496,-168.0,0.00016549,2]
[402567346,1768709440506,-168.0,0.00016561,2]
[402567348,1768709440515,-168.0,0.00016583,2]
[402567349,1768709440525,-292.64,0.00016591,2]
[402567350,1768709440535,-168.0,0.00016595,2]
[402567351,1768709440544,-500.0,0.00016602,2]
[402567352,1768709440554,-522.69003384,0.00016612,2]
[402567353,1768709440563,-500.0,0.00016614,2]
[402567354,1768709440572,-500.0,0.00016614,2]
[402567356,1768709440581,-31146.2194271,0.00016615,2]
[402567357,1768709440591,-181.3404899,0.00016615,2]
[402567358,1768709440600,-19884.478782,0.00016615,2]
[402567359,1768709440610,-860.9816325,0.00016615,2]
[402567360,1768709440619,-305.0799874,0.00016627,2]
[402567362,1768709440628,-305.0799874,0.00016627,2]
[402567364,1768709440638,-305.0799874,0.00016627,2]
[402567366,1768709440647,-305.0799874,0.00016627,2]
[402567368,1768709440655,-305.0799874,0.00016627,2]
[402567369,1768709440664,-305.0799874,0.00016627,2]
[402567371,1768709440673,-305.0799874,0.00016627,2]
[402567373,1768709440683,-305.0799874,0.00016627,2]
[402567375,1768709440693,-305.0799874,0.00016627,2]
[402567377,1768709440703,-305.0799874,0.00016627,2]
[402567378,1768709440711,-305.0799874,0.00016627,2]
[402567380,1768709440721,-610.1599748,0.00016627,2]
[402567382,1768709440730,-305.0799874,0.00016627,2]
[402567384,1768709440739,-305.0799874,0.00016627,2]
[402567386,1768709440748,-305.0799874,0.00016627,2]
[402567388,1768709440757,-305.0799874,0.00016627,2]
[402567389,1768709440766,-168.0,0.00016684,2]
[402567391,1768709440775,-168.0,0.00016708,2]
[402567393,1768709440784,-500.0,0.00016709,2]
[402567395,1768709440794,-500.0,0.00016709,2]
[402567397,1768709440803,-500.0,0.00016709,2]
[402567399,1768709440812,-500.0,0.00016709,2]
[402567400,1768709440821,-500.0,0.00016709,2]
[402567402,1768709440830,-500.0,0.00016709,2]
[402567404,1768709440839,-500.0,0.00016709,2]
[402567406,1768709440848,-500.0,0.00016709,2]
[402567408,1768709440857,-500.0,0.00016709,2]
[402567410,1768709440866,-151.0,0.0001671,2]
[402567411,1768709440876,-151.0,0.0001671,2]
[402567413,1768709440884,-264.987697,0.0001671,2]
[402567415,1768709440894,-264.987697,0.0001671,2]
[402567417,1768709440903,-264.987697,0.0001671,2]
[402567419,1768709440912,-264.987697,0.0001671,2]
[402567421,1768709440921,-151.0,0.0001671,2]
[402567423,1768709440931,-151.237127,0.0001671,2]
[402567424,1768709440940,-151.0,0.0001671,2]
[402567426,1768709440950,-999.593712,0.0001671,2]
[402567428,1768709440960,-151.0,0.0001671,2]
[402567430,1768709440969,-999.593712,0.0001671,2]
[402567432,1768709440978,-151.0,0.0001671,2]
[402567434,1768709440987,-999.593712,0.0001671,2]
[402567436,1768709440997,-151.0,0.0001671,2]
[402567437,1768709441009,-999.593712,0.0001671,2]
[402567439,1768709441018,-1370.672254,0.0001671,2]
[402567441,1768709441028,-1370.672254,0.0001671,2]
[402567443,1768709441037,-1370.672254,0.0001671,2]
[402567445,1768709441047,-1370.672254,0.0001671,2]
[402567447,1768709441057,-194.0,0.00016712,2]
[402567449,1768709441066,-500.0,0.00016712,2]
[402567451,1768709441076,-232.595,0.00016757,2]
[402567452,1768709441085,-244.298,0.00016757,2]
[402567454,1768709441095,-250.0,0.00016757,2]
[402567456,1768709441104,-200.096,0.00016757,2]
[402567458,1768709441113,-261.711,0.00016757,2]
[402567460,1768709441122,-267.733,0.00016757,2]
[402567462,1768709441131,-1367.0,0.00016757,2]
[402567464,1768709441139,-629.0,0.00016757,2]
[402567465,1768709441148,-2148.0,0.00016757,2]
[402567467,1768709441157,-168.0,0.00016759,2]
[402567469,1768709441167,-389.00876281,0.0001681,2]
[402567471,1768709441175,-1556.03505122,0.0001681,2]
[402567473,1768709441184,-3501.07886525,0.0001681,2]
[402567475,1768709441194,-6217.91606468,0.0001681,2]
[402567477,1768709441208,-457.89096142,0.0001681,2]
[402567479,1768709441217,-1831.56384568,0.0001681,2]
[402567481,1768709441228,-4121.01865279,0.0001681,2]
[402567482,1768709441238,-7326.25538274,0.0001681,2]
[402567484,1768709441248,-160.0,0.00016834,5]
[402567486,1768709441258,-318.0,0.00016889,2]
[402567488,1768709441267,-161.0,0.000169,2]
[402567490,1768709441277,-161.0,0.000169,2]
[402567492,1768709441286,-168.0,0.00016904,2]
[402567494,1768709441295,-168.0,0.00016941,2]
[402567496,1768709441305,-522.69003381,0.00016951,2]
[402567498,1768709441315,-2674.60743027,0.00016967,2]
[402567499,1768709441324,-553.64373807,0.00016967,2]
[402567501,1768709441334,-194.0,0.00016986,2]
[402567503,1768709441343,-778.0,0.00017,2]
[402567505,1768709441353,-279.24974871,0.00017004,2]
[402567507,1768709441363,-729.0,0.0001702,2]
[402567509,1768709441372,-729.0,0.0001702,2]
[402567511,1768709441381,-408.0,0.00017061,2]
[402567513,1768709441390,-729.0,0.00017089,2]
[402567515,1768709441400,-160.0,0.00017174,6]
[402567516,1768709441409,-748.0,0.00017178,2]
[402567518,1768709441418,-484.0,0.00017216,2]
[402567520,1768709441427,-168.0,0.00017221,2]
[402567522,1768709441436,-194.0,0.0001726,2]
[402567524,1768709441445,-377.8688684,0.00017282,2]
[402567526,1768709441453,-522.69003381,0.00017291,2]
[402567528,1768709441463,-729.0,0.0001734,2]
[402567530,1768709441472,-729.0,0.0001734,2]
[402567532,1768709441481,-729.0,0.0001734,2]
[402567533,1768709441490,-729.0,0.0001734,2]
[402567535,1768709441500,-168.0,0.00017345,2]
[402567537,1768709441508,-500.0,0.00017395,2]
[402567539,1768709441517,-307.5992852,0.00017418,2]
[402567541,1768709441526,-600.0,0.00017473,2]
[402567543,1768709441536,-154.42329083,0.00017507,30]
[402567545,1768709441545,-500.0,0.00017508,2]
[402567547,1768709441554,-160.0,0.00017514,7]
[402567549,1768709441563,-2773.56790519,0.00017515,2]
[402567551,1768709441572,-574.12855637,0.00017515,2]
[402567552,1768709441581,-1400.0,0.0001753,2]
[402567554,1768709441590,-194.0,0.00017534,2]
[402567556,1768709441599,-154.42329083,0.00017616,30]
[402567558,1768709441608,-522.69003381,0.0001763,2]
[402567560,1768709441618,-200.0,0.0001763,7]
[402567562,1768709441627,-200.0,0.0001763,7]
[402567564,1768709441636,-200.0,0.0001763,7]
[402567566,1768709441645,-850.6,0.00017643,3]
[402567568,1768709441654,-729.0,0.00017644,2]
[402567569,1768709441663,-3000.0,0.00017653,7]
[402567571,1768709441675,-484.972544,0.00017655,7]
[402567573,1768709441684,-600.0,0.00017655,2]
[402567575,1768709441693,-837.575472,0.00017655,7]
[402567577,1768709441703,-728.0,0.0001766,2]
[402567579,1768709441713,-729.0,0.0001766,2]
[402567581,1768709441722,-1091.604084,0.0001766,7]
[402567583,1768709441731,-167.973893,0.0001766,7]
[402567585,1768709441741,-500.0,0.00017695,2]
[402567587,1768709441750,-157.475524,0.00017695,7]
[402567589,1768709441759,-154.42329083,0.00017699,30]
[402567590,1768709441768,-425.3,0.00017699,3]
[402567592,1768709441778,-1400.0,0.00017738,2]
[402567594,1768709441787,-500.0,0.00017749,2]
[402567596,1768709441796,-5000.0,0.00017759,2]
[402567598,1768709441806,-5000.0,0.00017759,2]
[402567600,1768709441815,-1400.878046,0.00017781,7]
[402567602,1768709441824,-154.42329083,0.00017781,30]
[402567604,1768709441833,-173.315,0.00017781,2]
[402567606,1768709441845,-178.401,0.00017781,2]
[402567608,1768709441854,-194.0,0.00017808,2]
[402567610,1768709441863,-4860.40228603,0.00017831,2]
[402567611,1768709441872,-600.0,0.00017837,2]
[402567613,1768709441882,-160.0,0.00017854,8]
[402567615,1768709441891,-154.42329083,0.0001789,30]
[402567617,1768709441901,-500.0,0.00017954,2]
[402567619,1768709441911,-522.69003381,0.00017969,2]
[402567621,1768709441920,-154.42329083,0.00017973,30]
[402567623,1768709441929,-1186.2537574,0.00017973,7]
[402567642,1768709442112,-26.1776026,0.00017973,7]
[402567644,1768709442122,-8751.54550248,0.00017978,2]
[402567646,1768709442132,-161.0,0.0001798,2]
[402567648,1768709442141,-729.0,0.0001798,2]
[402567650,1768709442151,-161.0,0.0001798,2]
[402567651,1768709442161,-168.43,0.00017989,2]
[402567653,1768709442170,-151.0,0.00018,2]
[402567655,1768709442179,-160.0,0.00018014,2]
[402567657,1768709442190,-600.0,0.00018019,2]
[402567659,1768709442200,-1693.01468507,0.00018052,3]
[402567752,1768709443701,-16269.3915,0.00018052,3]
[402568037,1768709446687,-3550.90736295,0.00018052,3]
[402569686,1768709463819,500.0,0.00027397,120]
[402569710,1768709464046,501.55462991,0.00027397,120]
[402572377,1768709587333,637.98,0.00012329,2]
[402572378,1768709618167,212.65,0.00012329,2]
[402572379,1768709628852,177.2,0.00012329,2]
[402572380,1768709639469,886.05,0.00012329,2]
[402572382,1768709650012,182.07317566,0.00027397,120]
[402572386,1768709846763,500.0,0.000104,2]
[402572387,1768709848052,500.0,0.000104,2]
[402572388,1768709848544,500.0,0.000104,2]
[402572389,1768709849033,500.0,0.000104,2]
[402572390,1768709850086,500.0,0.000104,2]
[402572391,1768709850590,500.0,0.000104,2]
[402572392,1768709851071,500.0,0.000104,2]
[402572393,1768709851566,500.0,0.000104,2]
[402572394,1768709852048,500.0,0.000104,2]
[402572395,1768709852535,1400.0,0.000104,2]
[402572396,1768709852561,815.90654159,0.000104,2]
[402572397,1768709853000,536.72345841,0.000104,2]
[402572398,1768709853020,863.27654159,0.000104,2]
[402572399,1768709853473,1400.0,0.000104,2]
[402572400,1768709853970,1400.0,0.000104,2]
[402572401,1768709854478,1400.0,0.000104,2]
[402572402,1768709854635,500.0,0.000104,2]
[402572403,1768709855007,1400.0,0.000104,2]
[402572404,1768709855118,500.0,0.000104,2]
[402572405,1768709855491,1400.0,0.000104,2]
[402572406,1768709855597,500.0,0.000104,2]
[402572407,1768709855977,636.73345841,0.000104,2]
[402572408,1768709856000,763.26654159,0.000104,2]
[402572409,1768709856119,500.0,0.000104,2]
[402572410,1768709856466,1400.0,0.000104,2]
[402572411,1768709856580,500.0,0.000104,2]
[402572412,1768709856953,1400.0,0.000104,2]
[402572413,1768709857039,500.0,0.000104,2]
[402572414,1768709857501,1400.0,0.000104,2]
[402572415,1768709857542,500.0,0.000104,2]
[402572416,1768709857986,1400.0,0.000104,2]
[402572417,1768709858049,500.0,0.000104,2]
[402572418,1768709858495,1136.74345841,0.000104,2]
[402572419,1768709858517,263.25654159,0.000104,2]
[402572420,1768709858555,500.0,0.000104,2]
[402572421,1768709859010,2748.00600295,0.000104,2]
[402572422,1768709859044,500.0,0.000104,2]
[402572423,1768709859522,500.0,0.000104,2]
[402572424,1768709859637,500.0,0.000104,2]
[402572425,1768709860185,530.07314508,0.000104,2]
[402572426,1768709868909,500.0,0.000104,2]
[402572427,1768709869443,500.0,0.000104,2]
[402572428,1768709869920,500.0,0.000104,2]
[402572429,1768709870409,500.0,0.000104,2]
[402572430,1768709870906,500.0,0.000104,2]
[402572431,1768709871386,500.0,0.000104,2]
[402572432,1768709871931,500.0,0.000104,2]
[402572433,1768709872442,500.0,0.000104,2]
[402572434,1768709872918,500.0,0.000104,2]
[402572435,1768709873416,500.0,0.000104,2]
[402572436,1768709874443,500.0,0.000104,2]
[402572437,1768709874955,500.0,0.000104,2]
[402572438,1768709875570,500.0,0.000104,2]
[402572439,1768709876076,573.68965275,0.000104,2]
[402572442,1768710147828,814.00229468,0.000104,2]
[402572454,1768710486876,5508.44041295,0.000125,2]
[402572455,1768710514929,1671.54318916,0.0001,2]
[402572475,1768710631603,-12078.01832791,0.00012896,2]
[402572476,1768710631614,-300.042,0.00012896,2]
[402572513,1768710637891,-241.33124151,0.00012895,2]
[402572515,1768710637902,-236.4858683,0.00012895,2]
[402572517,1768710637912,-500.0,0.00012895,2]
[402572519,1768710637922,-500.0,0.00012895,2]
[402572521,1768710637932,-500.0,0.00012895,2]
[402572523,1768710637941,-153.82544327,0.00012895,2]
[402572525,1768710637951,-500.0,0.00012895,2]
[402572527,1768710637960,-500.0,0.00012895,2]
[402572528,1768710637969,-500.0,0.00012895,2]
[402572529,1768710637979,-465.26820142,0.00012895,2]
[402572530,1768710637989,-500.0,0.00012895,2]
[402572533,1768710637999,-500.0,0.00012895,2]
[402572534,1768710638009,-500.0,0.00012895,2]
[402572535,1768710638019,-500.0,0.00012895,2]
[402572537,1768710638028,-500.0,0.00012895,2]
[402572539,1768710638038,-500.0,0.00012895,2]
[402572541,1768710638047,-500.0,0.00012895,2]
[402572543,1768710638056,-500.0,0.00012895,2]
[402572545,1768710638066,-500.0,0.00012895,2]
[402572547,1768710638076,-500.0,0.00012895,2]
[402572549,1768710638086,-500.0,0.00012895,2]
[402572551,1768710638095,-279.34924094,0.00012895,2]
[402572553,1768710638105,-500.0,0.00012895,2]
[402572555,1768710638115,-500.0,0.00012895,2]
[402572557,1768710638124,-500.0,0.00012895,2]
[402572559,1768710638134,-500.0,0.00012895,2]
[402572561,1768710638143,-500.0,0.00012895,2]
[402572563,1768710638157,-500.0,0.00012895,2]
[402572565,1768710638171,-500.0,0.00012895,2]
[402572567,1768710638181,-500.0,0.00012895,2]
[402572569,1768710638191,-500.0,0.00012895,2]
[402572571,1768710638200,-500.0,0.00012895,2]
[402572573,1768710638209,-500.0,0.00012895,2]
[402572575,1768710638218,-500.0,0.00012895,2]
[402572577,1768710638228,-500.0,0.00012895,2]
[402572579,1768710638237,-500.0,0.00012895,2]
[402572581,1768710638248,-500.0,0.00012895,2]
[402572583,1768710638257,-500.0,0.00012895,2]
[402572585,1768710638267,-500.0,0.00012895,2]
[402572587,1768710638277,-600.0,0.00012895,2]
[402572589,1768710638287,-500.0,0.00012895,2]
[402572591,1768710638296,-500.0,0.00012895,2]
[402572592,1768710638306,-500.0,0.00012895,2]
[402572594,1768710638316,-500.0,0.00012895,2]
[402572595,1768710638326,-500.0,0.00012895,2]
[402572597,1768710638335,-500.0,0.00012895,2]
[402572598,1768710638346,-500.0,0.00012895,2]
[402572599,1768710638355,-550.0,0.00012895,2]
[402572600,1768710638365,-500.0,0.00012895,2]
[402572601,1768710638375,-500.0,0.00012895,2]
[402572602,1768710638385,-395.3889855,0.00012895,2]
[402572603,1768710638394,-500.0,0.00012895,2]
[402572604,1768710638405,-500.0,0.00012895,2]
[402572605,1768710638415,-500.0,0.00012895,2]
[402572606,1768710638424,-500.0,0.00012895,2]
[402572607,1768710638434,-500.0,0.00012895,2]
[402572608,1768710638444,-500.0,0.00012895,2]
[402572609,1768710638453,-500.0,0.00012895,2]
[402572610,1768710638463,-500.0,0.00012895,2]
[402572611,1768710638474,-500.0,0.00012895,2]
[402572612,1768710638484,-500.0,0.00012895,2]
[402572613,1768710638495,-500.0,0.00012895,2]
[402572614,1768710638506,-500.0,0.00012895,2]
[402572615,1768710638516,-500.0,0.00012895,2]
[402572616,1768710638526,-500.0,0.00012895,2]
[402572617,1768710638536,-500.0,0.00012895,2]
[402572618,1768710638546,-500.0,0.00012895,2]
[402572619,1768710638556,-500.0,0.00012895,2]
[402572620,1768710638566,-500.0,0.00012895,2]
[402572621,1768710638576,-500.0,0.00012895,2]
[402572622,1768710638585,-500.0,0.00012895,2]
[402572623,1768710638595,-987621.93967209,0.00012896,2]
[402572624,1768710638604,-300.0,0.00012896,2]
[402572625,1768710638614,-603.0,0.00012896,2]
[402572626,1768710638623,-201.59569346,0.00012996,2]
[402572627,1768710638634,-331.73,0.00012997,2]
[402572628,1768710638646,-1000.0,0.00013,2]
[402572629,1768710638656,-1000.0,0.00013,2]
[402572630,1768710638666,-1000.0,0.00013,2]
[402572631,1768710638677,-1000.0,0.00013,2]
[402572632,1768710638687,-1000.0,0.00013,2]
[402572633,1768710638696,-1000.0,0.00013,2]
[402572634,1768710638706,-1000.0,0.00013,2]
[402572635,1768710638716,-1000.0,0.00013,2]
[402572636,1768710638726,-1000.0,0.00013,2]
[402572637,1768710638736,-1000.0,0.00013,2]
[402572638,1768710638746,-549.162056,0.00013,2]
[402572639,1768710638755,-522.69003384,0.000131,2]
[402572640,1768710638765,-151.0,0.000132,2]
[402572641,1768710638775,-331.73,0.00013271,2]
[402572642,1768710638785,-331.74,0.00013545,2]
[402572643,1768710638794,-500.0,0.00013698,2]
[402572644,1768710638804,-500.0,0.00013698,2]
[402572645,1768710638814,-500.0,0.00013698,2]
[402572646,1768710638824,-500.0,0.00013698,2]
[402572647,1768710638834,-500.0,0.00013698,2]
[402572648,1768710638844,-500.0,0.00013698,2]
[402572649,1768710638855,-500.0,0.00013698,2]
[402572650,1768710638865,-500.0,0.00013698,2]
[402572651,1768710638877,-500.0,0.00013698,2]
[402572652,1768710638887,-500.0,0.00013698,2]
[402572653,1768710638897,-500.0,0.00013698,2]
[402572654,1768710638906,-1000.0,0.00013699,2]
[402572655,1768710638915,-647.64482914,0.00013699,2]
[402572656,1768710638925,-522.69003381,0.0001432,2]
[402572657,1768710638935,-1041.66666667,0.00014806,2]
[402572658,1768710638944,-445.202766,0.00014972,2]
[402572659,1768710638954,-2150.738,0.00014972,2]
[402572660,1768710638964,-237.88291828,0.00014996,2]
[402572661,1768710638973,-461.67526834,0.0001552,2]
[402572662,1768710638983,-2230.315306,0.0001552,2]
[402572663,1768710638992,-522.69003381,0.00015539,2]
[402572664,1768710639003,-168.0,0.00015661,2]
[402572665,1768710639012,-500.0,0.00015749,30]
[402572666,1768710639022,-500.0,0.00015749,30]
[402572667,1768710639031,-500.0,0.00015749,30]
[402572668,1768710639041,-500.0,0.00015749,30]
[402572669,1768710639051,-1400.0,0.00015749,30]
[402572670,1768710639060,-500.0,0.00015749,30]
[402572671,1768710639070,-500.0,0.00015749,30]
[402572672,1768710639079,-500.0,0.00015749,30]
[402572673,1768710639089,-1400.0,0.00015749,30]
[402572674,1768710639099,-500.0,0.00015749,30]
[402572675,1768710639109,-500.0,0.00015749,30]
[402572676,1768710639119,-1400.0,0.00015749,30]
[402572677,1768710639129,-500.0,0.00015749,30]
[402572678,1768710639139,-1400.0,0.00015749,30]
[402572679,1768710639149,-500.0,0.00015749,30]
[402572680,1768710639160,-1400.0,0.00015749,30]
[402572681,1768710639171,-1400.0,0.00015749,30]
[402572682,1768710639181,-500.0,0.00015749,30]
[402572683,1768710639190,-1400.0,0.00015749,30]
[402572684,1768710639200,-500.0,0.00015749,30]
[402572685,1768710639209,-1400.0,0.00015749,30]
[402572686,1768710639219,-500.0,0.00015749,30]
[402572687,1768710639229,-1400.0,0.00015749,30]
[402572688,1768710639238,-500.0,0.00015749,30]
[402572689,1768710639248,-1400.0,0.00015749,30]
[402572690,1768710639258,-500.0,0.00015749,30]
[402572691,1768710639267,-1400.0,0.00015749,30]
[402572692,1768710639276,-1400.0,0.00015749,30]
[402572693,1768710639286,-500.0,0.00015749,30]
[402572694,1768710639296,-1400.0,0.00015749,30]
[402572695,1768710639305,-500.0,0.00015749,30]
[402572696,1768710639315,-1400.0,0.00015749,30]
[402572697,1768710639324,-500.0,0.00015749,30]
[402572698,1768710639334,-500.0,0.00015749,30]
[402572699,1768710639343,-500.0,0.00015749,30]
[402572700,1768710639352,-500.0,0.00015749,30]
[402572701,1768710639361,-500.0,0.00015749,30]
[402572702,1768710639371,-500.0,0.00015749,30]
[402572707,1768710639426,-500.0,0.00015749,30]
[402572709,1768710639436,-500.0,0.00015749,30]
[402572711,1768710639445,-500.0,0.00015749,30]
[402572713,1768710639454,-500.0,0.00015749,30]